bitfinex-derivatives/quotes_ETHF0:USTF0_20260117
["timestamp","ask_amount","ask_price","bid_price","bid_amount"]
[1768641843430,1.18076346,3297.4,3296.7,0.98262]
[1768641843729,0.92193549,3297.3,3296.6,0.36750102]
[1768641844026,1.7053372,3297.5,3296.6,0.36750102]
[1768641844230,1.1802333,3297.4,3296.6,0.36750102]
[1768641844525,1.7053372,3297.5,3296.6,0.36750102]
[1768641844732,0.92112292,3297.4,3296.6,0.36750102]
[1768641844925,1.7053372,3297.5,3296.6,0.36750102]
[1768641845126,0.92112298,3297.4,3296.6,0.36750102]
[1768641845328,1.7053372,3297.5,3296.6,0.36750102]
[1768641845628,0.92093152,3297.4,3296.6,0.36750102]
[1768641845930,1.7053372,3297.5,3296.6,0.36750102]
[1768641846429,0.92091383,3297.4,3296.6,0.36750102]
[1768641846628,1.7053372,3297.5,3296.6,0.36750102]
[1768641846830,0.92078396,3297.4,3296.6,0.36750102]
[1768641847126,1.7053372,3297.5,3296.6,0.36750102]
[1768641847333,0.92078232,3297.4,3296.6,0.36750102]
[1768641847527,1.7053372,3297.5,3296.6,0.36750102]
[1768641847727,0.92066431,3297.4,3296.6,0.36750102]
[1768641847929,1.7053372,3297.5,3296.6,0.36750102]
[1768641848136,0.92066477,3297.4,3296.6,0.36750102]
[1768641848331,1.7053372,3297.5,3296.6,0.36750102]
[1768641848535,0.92055267,3297.4,3296.6,0.36750102]
[1768641848736,1.7053372,3297.5,3296.6,0.36750102]
[1768641848937,0.92055264,3297.4,3296.6,0.36750102]
[1768641849234,1.7053372,3297.5,3296.6,0.36750102]
[1768641849437,0.92045884,3297.4,3296.6,0.36750102]
[1768641849625,1.7053372,3297.5,3296.6,0.36750102]
[1768641849826,0.92045887,3297.4,3296.6,0.36750102]
[1768641850027,1.7053372,3297.5,3296.6,0.36750102]
[1768641850237,0.92045884,3297.4,3296.6,0.36750102]
[1768641850429,1.7053372,3297.5,3296.6,0.36750102]
[1768641851031,0.92042039,3297.4,3296.6,0.36750102]
[1768641851338,1.7053372,3297.5,3296.6,0.36750102]
[1768641856743,1.7043372,3297.5,3296.6,0.36750102]
[1768641862551,0.92070149,3297.4,3296.6,0.36750102]
[1768641862751,1.7043372,3297.5,3296.6,0.36750102]
[1768641862752,0.92070149,3297.3,3296.6,0.36750102]
[1768641862957,1.7043372,3297.5,3296.6,0.36750102]
[1768641863255,0.92070149,3297.4,3296.6,0.36750102]
[1768641863550,0.92070149,3297.3,3296.6,0.36750102]
[1768641863743,1.7043372,3297.5,3296.6,0.36750102]
[1768641863947,0.92075727,3297.4,3296.6,0.36750102]
[1768641864152,0.92075727,3297.3,3296.6,0.36750102]
[1768641864342,1.7043372,3297.5,3296.6,0.36750102]
[1768641864541,0.92082578,3297.4,3296.6,0.36750102]
[1768641864738,0.92082578,3297.3,3296.6,0.36750102]
[1768641865057,0.92255349,3297.2,3296.6,0.36750102]
[1768641865247,1.7043372,3297.5,3296.6,0.36750102]
[1768641865445,0.92263653,3297.4,3296.6,0.36750102]
[1768641865743,0.92263653,3297.3,3296.6,0.36750102]
[1768641865943,0.92263653,3297.2,3296.6,0.36750102]
[1768641866143,1.7043372,3297.5,3296.6,0.36750102]
[1768641866344,0.92271746,3297.4,3296.6,0.36750102]
[1768641866554,0.92271746,3297.3,3296.6,0.36750102]
[1768641866757,0.92271746,3297.2,3296.6,0.36750102]
[1768641867051,1.7043372,3297.5,3296.6,0.36750102]
[1768641867252,0.92273652,3297.4,3296.6,0.36750102]
[1768641867453,1.7043372,3297.5,3296.6,0.36750102]
[1768641867454,0.92273652,3297.3,3296.6,0.36750102]
[1768641867649,0.92273652,3297.2,3296.6,0.36750102]
[1768641867849,1.7043372,3297.5,3296.6,0.36750102]
[1768641868070,0.92285752,3297.4,3296.6,0.36750102]
[1768641868354,0.92285752,3297.3,3296.6,0.36750102]
[1768641868555,0.92285752,3297.2,3296.6,0.36750102]
[1768641868757,1.7043372,3297.5,3296.6,0.36750102]
[1768641868952,0.92300609,3297.4,3296.6,0.36750102]
[1768641869155,0.92300609,3297.3,3296.6,0.36750102]
[1768641869350,0.92300609,3297.2,3296.6,0.36750102]
[1768641869655,0.92300609,3297.1,3296.6,0.36750102]
[1768641869856,1.7043372,3297.5,3296.6,0.36750102]
[1768641870051,0.92319412,3297.4,3296.6,0.36750102]
[1768641870251,0.92319412,3297.3,3296.6,0.36750102]
[1768641870459,0.92319412,3297.2,3296.6,0.36750102]
[1768641870647,0.92319412,3297.1,3296.6,0.36750102]
[1768641870848,1.7043372,3297.5,3296.6,0.36750102]
[1768641871050,0.92320729,3297.4,3296.6,0.36750102]
[1768641871251,0.92320729,3297.3,3296.6,0.36750102]
[1768641871452,0.92320729,3297.2,3296.6,0.36750102]
[1768641871652,0.92320729,3297.1,3296.6,0.36750102]
[1768641871964,1.7043372,3297.5,3296.6,0.36750102]
[1768641872154,0.9234629,3297.4,3296.6,0.36750102]
[1768641872457,0.9234629,3297.3,3296.6,0.36750102]
[1768641872658,1.7043372,3297.5,3296.6,0.36750102]
[1768641872856,0.9240096,3297.4,3296.6,0.36750102]
[1768641873057,0.9240096,3297.3,3296.6,0.36750102]
[1768641873258,1.7043372,3297.5,3296.6,0.36750102]
[1768641873461,0.92401136,3297.4,3296.6,0.36750102]
[1768641873649,0.92401136,3297.3,3296.6,0.36750102]
[1768641873853,1.7043372,3297.5,3296.6,0.36750102]
[1768641874063,0.92405792,3297.4,3296.6,0.36750102]
[1768641874264,1.7043372,3297.5,3296.6,0.36750102]
[1768641874265,0.92405792,3297.3,3296.6,0.36750102]
[1768641874564,1.7043372,3297.5,3296.6,0.36750102]
[1768641874764,0.92406566,3297.4,3296.6,0.36750102]
[1768641874965,0.92406566,3297.3,3296.6,0.36750102]
[1768641875165,1.7043372,3297.5,3296.6,0.36750102]
[1768641875365,0.92406646,3297.4,3296.6,0.36750102]
[1768641875574,0.92406646,3297.3,3296.6,0.36750102]
[1768641875766,1.7043372,3297.5,3296.6,0.36750102]
[1768641875967,0.92407574,3297.4,3296.6,0.36750102]
[1768641876266,0.92407574,3297.3,3296.6,0.36750102]
[1768641876466,1.7043372,3297.5,3296.6,0.36750102]
[1768641876667,0.92408966,3297.4,3296.6,1.35012102]
[1768641876866,0.92408966,3297.3,3296.6,1.35012102]
[1768641877064,1.7043372,3297.5,3296.6,1.35012102]
[1768641877252,0.9240916,3297.4,3296.6,0.36750102]
[1768641877458,0.9240916,3297.3,3296.6,0.36750102]
[1768641877768,1.7043372,3297.5,3296.6,0.36750102]
[1768641878069,0.92411439,3297.4,3296.6,0.36750102]
[1768641878266,0.92411439,3297.3,3296.6,0.36750102]
[1768641878467,1.7043372,3297.5,3296.6,0.36750102]
[1768641878663,0.92411468,3297.4,3296.6,0.36750102]
[1768641878871,0.92411468,3297.3,3296.6,0.36750102]
[1768641879071,1.7043372,3297.5,3296.6,0.36750102]
[1768641879370,0.92411879,3297.4,3296.6,0.36750102]
[1768641879668,0.92411879,3297.3,3296.6,0.36750102]
[1768641879859,1.7043372,3297.5,3296.6,0.36750102]
[1768641880062,0.92407252,3297.4,3296.6,0.36750102]
[1768641880361,0.92407252,3297.3,3296.6,0.36750102]
[1768641880561,1.7043372,3297.5,3296.6,0.36750102]
[1768641880761,0.92404397,3297.4,3296.6,0.36750102]
[1768641880962,0.92404397,3297.3,3296.6,0.36750102]
[1768641881170,1.7043372,3297.5,3296.6,0.36750102]
[1768641881376,0.92404223,3297.4,3296.6,0.36750102]
[1768641881669,0.92404223,3297.3,3296.6,0.36750102]
[1768641881874,1.7043372,3297.5,3296.6,0.36750102]
[1768641882071,0.92402372,3297.4,3296.6,0.36750102]
[1768641882272,0.92402372,3297.3,3296.6,0.36750102]
[1768641882572,1.7043372,3297.5,3296.6,0.36750102]
[1768641882769,0.92400913,3297.4,3296.6,0.36750102]
[1768641882969,0.92400913,3297.3,3296.6,0.36750102]
[1768641883172,1.7043372,3297.5,3296.6,0.36750102]
[1768641883364,0.92400876,3297.4,3296.6,0.36750102]
[1768641883563,0.92400876,3297.3,3296.6,0.36750102]
[1768641883770,1.7043372,3297.5,3296.6,0.36750102]
[1768641883958,0.92399735,3297.4,3296.6,0.36750102]
[1768641884163,0.92399735,3297.3,3296.6,0.36750102]
[1768641884364,1.7043372,3297.5,3296.6,0.36750102]
[1768641884563,0.92398749,3297.4,3296.6,0.36750102]
[1768641884863,0.92398749,3297.3,3296.6,0.36750102]
[1768641885063,1.7043372,3297.5,3296.6,0.36750102]
[1768641885263,0.92398738,3297.4,3296.6,0.36750102]
[1768641885463,0.92398738,3297.3,3296.6,0.36750102]
[1768641885770,1.7043372,3297.5,3296.6,0.36750102]
[1768641885971,0.92397937,3297.4,3296.6,0.36750102]
[1768641886173,0.92397937,3297.3,3296.6,0.36750102]
[1768641886359,1.7043372,3297.5,3296.6,0.36750102]
[1768641886564,0.92397122,3297.4,3296.6,0.36750102]
[1768641886769,1.7043372,3297.5,3296.6,0.36750102]
[1768641886770,0.92397122,3297.3,3296.6,0.36750102]
[1768641887067,1.7043372,3297.5,3296.6,0.36750102]
[1768641887271,0.92396681,3297.4,3296.6,0.36750102]
[1768641887470,0.92396681,3297.3,3296.6,0.36750102]
[1768641887672,1.7043372,3297.5,3296.6,0.36750102]
[1768641887971,0.92395371,3297.4,3296.6,0.36750102]
[1768641888267,0.92395371,3297.3,3296.6,0.36750102]
[1768641888471,1.7043372,3297.5,3296.6,0.36750102]
[1768641888772,0.92390572,3297.4,3296.6,0.36750102]
[1768641888967,0.92390572,3297.3,3296.6,0.36750102]
[1768641889171,1.7043372,3297.5,3296.6,0.36750102]
[1768641889373,0.92390572,3297.4,3296.6,0.36750102]
[1768641889573,0.92390572,3297.3,3296.6,0.36750102]
[1768641889773,1.7043372,3297.5,3296.6,0.36750102]
[1768641890072,0.92390374,3297.4,3296.6,0.36750102]
[1768641890273,0.92390374,3297.3,3296.6,0.36750102]
[1768641890475,1.7043372,3297.5,3296.6,0.36750102]
[1768641890676,0.92390325,3297.4,3296.6,0.36750102]
[1768641890876,0.92390325,3297.3,3296.6,0.36750102]
[1768641891075,1.7043372,3297.5,3296.6,0.36750102]
[1768641891277,0.92390556,3297.4,3296.6,0.36750102]
[1768641891578,0.92390556,3297.3,3296.6,0.36750102]
[1768641891775,1.7043372,3297.5,3296.6,0.36750102]
[1768641891976,0.9239043,3297.4,3296.6,0.36750102]
[1768641892177,0.9239043,3297.3,3296.6,0.36750102]
[1768641892474,1.7043372,3297.5,3296.6,0.36750102]
[1768641892678,0.92390419,3297.4,3296.6,0.36750102]
[1768641892879,0.92390419,3297.3,3296.6,0.36750102]
[1768641893080,1.7043372,3297.5,3296.6,0.36750102]
[1768641893283,0.92390419,3297.4,3296.6,0.36750102]
[1768641893579,0.92390419,3297.3,3296.6,0.36750102]
[1768641893878,1.7043372,3297.5,3296.6,0.36750102]
[1768641894083,0.92390482,3297.4,3296.6,0.36750102]
[1768641894379,0.92390482,3297.3,3296.6,0.36750102]
[1768641894682,1.7043372,3297.5,3296.6,0.36750102]
[1768641894980,0.92390619,3297.4,3296.6,0.36750102]
[1768641895279,0.92390619,3297.3,3296.6,0.36750102]
[1768641895480,1.7043372,3297.5,3296.6,0.36750102]
[1768641895788,0.92291497,3297.4,3296.6,0.36750102]
[1768641895965,0.92291497,3297.3,3296.6,0.36750102]
[1768641896279,0.0033372,3297.5,3296.6,0.36750102]
[1768641896468,0.92291781,3297.4,3296.6,0.36750102]
[1768641896671,0.92291781,3297.3,3296.6,0.36750102]
[1768641896967,1.7043372,3297.5,3296.6,0.36750102]
[1768641897172,0.92291776,3297.4,3296.6,0.36750102]
[1768641897471,0.92291776,3297.3,3296.6,0.36750102]
[1768641897670,1.7043372,3297.5,3296.6,0.36750102]
[1768641897873,0.92292153,3297.4,3296.6,0.36750102]
[1768641898170,0.92292153,3297.3,3296.6,0.36750102]
[1768641898372,1.7043372,3297.5,3296.6,0.36750102]
[1768641898572,0.92292622,3297.4,3296.6,0.36750102]
[1768641898865,0.92292622,3297.3,3296.6,0.36750102]
[1768641899066,1.7043372,3297.5,3296.6,0.36750102]
[1768641899275,0.92292524,3297.4,3296.6,0.36750102]
[1768641899474,0.92292524,3297.3,3296.6,0.36750102]
[1768641899674,1.7043372,3297.5,3296.6,0.36750102]
[1768641899875,0.92293013,3297.4,3296.6,0.36750102]
[1768641900182,0.92293013,3297.3,3296.6,0.36750102]
[1768641900480,1.7043372,3297.5,3296.6,0.36750102]
[1768641900679,0.92293468,3297.4,3296.6,0.36750102]
[1768641900879,0.92293468,3297.3,3296.6,0.36750102]
[1768641901081,1.7043372,3297.5,3296.6,0.36750102]
[1768641901272,0.92293755,3297.4,3296.6,0.36750102]
[1768641901475,0.92293755,3297.3,3296.6,0.36750102]
[1768641901681,1.7043372,3297.5,3296.6,0.36750102]
[1768641901883,0.92294569,3297.4,3296.6,0.36750102]
[1768641902081,0.92294569,3297.3,3296.6,0.36750102]
[1768641902282,1.7043372,3297.5,3296.6,0.36750102]
[1768641902486,0.9229553,3297.4,3296.6,0.36750102]
[1768641902782,0.9229553,3297.3,3296.6,0.36750102]
[1768641902982,0.9229553,3297.2,3296.6,0.36750102]
[1768641903179,1.7043372,3297.5,3296.6,0.36750102]
[1768641903380,0.9229553,3297.4,3296.6,0.36750102]
[1768641903575,0.9229553,3297.3,3296.6,0.36750102]
[1768641903778,0.9229553,3297.2,3296.6,0.36750102]
[1768641904085,1.7043372,3297.5,3296.6,0.36750102]
[1768641904275,0.92296567,3297.4,3296.6,0.36750102]
[1768641904474,0.92296567,3297.3,3296.6,0.36750102]
[1768641904674,0.92296567,3297.2,3296.6,0.36750102]
[1768641904881,1.7043372,3297.5,3296.6,0.36750102]
[1768641905074,0.92297846,3297.4,3296.6,0.36750102]
[1768641905277,0.92297846,3297.3,3296.6,0.36750102]
[1768641905474,0.92297846,3297.2,3296.6,0.36750102]
[1768641905676,1.7043372,3297.5,3296.6,0.36750102]
[1768641905876,0.92299269,3297.4,3296.6,0.36750102]
[1768641906084,0.92299269,3297.3,3296.6,0.36750102]
[1768641906278,0.92299269,3297.2,3296.6,0.36750102]
[1768641906578,1.7043372,3297.5,3296.6,0.36750102]
[1768641906779,0.92301278,3297.4,3296.6,0.36750102]
[1768641906980,1.7043372,3297.5,3296.6,0.36750102]
[1768641906981,0.92301278,3297.3,3296.6,0.36750102]
[1768641907180,0.92301278,3297.2,3296.6,0.36750102]
[1768641907380,1.7043372,3297.5,3296.6,0.36750102]
[1768641907585,0.92304333,3297.4,3296.6,0.36750102]
[1768641907789,0.92304333,3297.3,3296.6,0.36750102]
[1768641907977,0.92304333,3297.2,3296.6,0.36750102]
[1768641908178,1.7043372,3297.5,3296.6,0.36750102]
[1768641908486,0.92304555,3297.4,3296.6,0.36750102]
[1768641908688,0.92304555,3297.3,3296.6,0.36750102]
[1768641908983,0.92304555,3297.2,3296.6,0.36750102]
[1768641909186,1.7043372,3297.5,3296.6,0.36750102]
[1768641909484,0.92308033,3297.4,3296.6,0.36750102]
[1768641909686,0.92308033,3297.3,3296.6,0.36750102]
[1768641909885,0.92308033,3297.2,3296.6,0.36750102]
[1768641910074,1.7043372,3297.5,3296.6,0.36750102]
[1768641910274,0.92308084,3297.4,3296.6,0.36750102]
[1768641910485,0.92308084,3297.3,3296.6,0.36750102]
[1768641910679,0.92308084,3297.2,3296.6,0.36750102]
[1768641910988,1.7043372,3297.5,3296.6,0.36750102]
[1768641911182,0.92308467,3297.4,3296.6,0.36750102]
[1768641911385,0.92308467,3297.3,3296.6,0.36750102]
[1768641911684,0.92308467,3297.2,3296.6,0.36750102]
[1768641911884,1.7043372,3297.5,3296.6,0.36750102]
[1768641912094,0.92308844,3297.4,3296.6,0.36750102]
[1768641912289,1.7043372,3297.5,3296.6,0.36750102]
[1768641912290,0.92308844,3297.3,3296.6,0.36750102]
[1768641912476,0.92308844,3297.2,3296.6,0.36750102]
[1768641912676,1.7043372,3297.5,3296.6,0.36750102]
[1768641912989,0.92311136,3297.4,3296.6,0.36750102]
[1768641913192,0.92311136,3297.3,3296.6,0.36750102]
[1768641913389,1.7043372,3297.5,3296.6,0.36750102]
[1768641913592,0.92311354,3297.4,3296.6,0.36750102]
[1768641913793,0.92311354,3297.3,3296.6,0.36750102]
[1768641913992,1.7043372,3297.5,3296.6,0.36750102]
[1768641914192,0.92311354,3297.4,3296.6,0.36750102]
[1768641914394,0.92311354,3297.3,3296.6,0.36750102]
[1768641914589,1.7043372,3297.5,3296.6,0.36750102]
[1768641914889,0.92311813,3297.4,3296.6,0.36750102]
[1768641915090,0.92311813,3297.3,3296.6,0.36750102]
[1768641915290,1.7043372,3297.5,3296.6,0.36750102]
[1768641915487,0.92311977,3297.4,3296.6,0.36750102]
[1768641915688,0.92311977,3297.3,3296.6,0.36750102]
[1768641915987,1.7043372,3297.5,3296.6,0.36750102]
[1768641916188,0.92311977,3297.4,3296.6,0.36750102]
[1768641916493,0.92311977,3297.3,3296.6,0.36750102]
[1768641916791,1.7043372,3297.5,3296.6,0.36750102]
[1768641916992,0.92312378,3297.4,3296.6,0.36750102]
[1768641917185,0.92312378,3297.3,3296.6,0.36750102]
[1768641917387,1.7043372,3297.5,3296.6,0.36750102]
[1768641917586,0.92312313,3297.4,3296.6,0.36750102]
[1768641917787,0.92312313,3297.3,3296.6,0.36750102]
[1768641918096,1.7043372,3297.5,3296.6,0.36750102]
[1768641918393,0.92312313,3297.4,3296.6,0.36750102]
[1768641918594,0.92312313,3297.3,3296.6,0.36750102]
[1768641918797,1.7043372,3297.5,3296.6,0.36750102]
[1768641918985,0.92312449,3297.4,3296.6,0.36750102]
[1768641919187,0.92312449,3297.3,3296.6,0.36750102]
[1768641919385,1.7043372,3297.5,3296.6,0.36750102]
[1768641919586,0.92312397,3297.4,3296.6,0.36750102]
[1768641919886,0.92312397,3297.3,3296.6,0.36750102]
[1768641920087,1.7043372,3297.5,3296.6,0.36750102]
[1768641920294,0.92312343,3297.4,3296.6,0.36750102]
[1768641920494,0.92312343,3297.3,3296.6,0.36750102]
[1768641920796,1.7043372,3297.5,3296.6,0.36750102]
[1768641920995,0.923123,3297.4,3296.6,0.36750102]
[1768641921193,0.923123,3297.3,3296.6,0.36750102]
[1768641921386,1.7043372,3297.5,3296.6,0.36750102]
[1768641921587,0.92312295,3297.4,3296.6,0.36750102]
[1768641921797,0.92312295,3297.3,3296.6,0.36750102]
[1768641922093,1.7043372,3297.5,3296.6,0.36750102]
[1768641922295,0.92312972,3297.4,3296.6,0.36750102]
[1768641922494,0.92312972,3297.3,3296.6,0.36750102]
[1768641922695,1.7043372,3297.5,3296.6,0.36750102]
[1768641922995,0.92312695,3297.4,3296.6,0.36750102]
[1768641923189,0.92312695,3297.3,3296.6,0.36750102]
[1768641923393,1.7043372,3297.5,3296.6,0.36750102]
[1768641923597,0.9231413,3297.4,3296.6,0.36750102]
[1768641923796,0.9231413,3297.3,3296.6,0.36750102]
[1768641923998,1.7043372,3297.5,3296.6,0.36750102]
[1768641924299,0.9231413,3297.4,3296.6,0.36750102]
[1768641924489,0.9231413,3297.3,3296.6,0.36750102]
[1768641924690,1.7043372,3297.5,3296.6,0.36750102]
[1768641924989,1.18227873,3297.4,3296.6,0.36750102]
[1768641925190,0.92316216,3297.3,3296.6,0.36750102]
[1768641925392,1.7043372,3297.5,3296.6,0.36750102]
[1768641925691,1.18265813,3297.4,3296.6,0.36750102]
[1768641925892,0.92354149,3297.3,3296.6,0.36750102]
[1768641926096,1.7043372,3297.5,3296.6,0.36750102]
[1768641926296,1.18265807,3297.4,3296.6,0.36750102]
[1768641926501,0.92354143,3297.3,3296.6,0.36750102]
[1768641926690,1.7043372,3297.5,3296.6,0.36750102]
[1768641926885,1.18265864,3297.4,3296.6,0.36750102]
[1768641927086,0.9235419,3297.3,3296.6,0.36750102]
[1768641927299,1.7043372,3297.5,3296.6,0.36750102]
[1768641927494,1.18260484,3297.4,3296.6,0.36750102]
[1768641927695,0.92349993,3297.3,3296.6,0.36750102]
[1768641927893,1.7043372,3297.5,3296.6,0.36750102]
[1768641928101,1.18260186,3297.4,3296.6,0.36750102]
[1768641928294,1.18260186,3297.3,3296.6,0.36750102]
[1768641928595,1.7043372,3297.5,3296.6,0.36750102]
[1768641928788,1.1826014,3297.4,3296.6,0.36750102]
[1768641928988,1.1826014,3297.3,3296.6,0.36750102]
[1768641929194,1.7043372,3297.5,3296.6,0.36750102]
[1768641929393,1.18260113,3297.4,3296.6,0.36750102]
[1768641929593,1.18260113,3297.3,3296.6,0.36750102]
[1768641929794,1.7043372,3297.5,3296.6,0.36750102]
[1768641929995,1.18260137,3297.4,3296.6,0.36750102]
[1768641930194,1.18260137,3297.3,3296.6,0.36750102]
[1768641930490,1.7043372,3297.5,3296.6,0.36750102]
[1768641930689,1.18259825,3297.4,3296.6,0.36750102]
[1768641930895,0.92349497,3297.3,3296.6,0.36750102]
[1768641931098,1.7043372,3297.5,3296.6,0.36750102]
[1768641931297,1.18254909,3297.4,3296.6,0.36750102]
[1768641931499,0.92345674,3297.3,3296.6,0.36750102]
[1768641931701,1.7043372,3297.5,3296.6,0.36750102]
[1768641931998,1.18254937,3297.4,3296.6,0.36750102]
[1768641932199,0.92345686,3297.3,3296.6,0.36750102]
[1768641932500,1.7043372,3297.5,3296.6,0.36750102]
[1768641932800,1.18254796,3297.4,3296.6,0.36750102]
[1768641932999,0.92345579,3297.3,3296.6,0.36750102]
[1768641933205,1.7043372,3297.5,3296.6,0.36750102]
[1768641933399,1.18253269,3297.4,3296.6,0.36750102]
[1768641933600,0.92344395,3297.3,3296.6,0.36750102]
[1768641933794,1.7043372,3297.5,3296.6,0.36750102]
[1768641933994,1.18253251,3297.4,3296.6,0.36750102]
[1768641934199,0.92344376,3297.3,3296.6,0.36750102]
[1768641934499,1.7043372,3297.5,3296.6,0.36750102]
[1768641934801,0.92344354,3297.4,3296.6,0.36750102]
[1768641935097,0.92344354,3297.3,3296.6,0.36750102]
[1768641935299,1.7043372,3297.5,3296.6,0.36750102]
[1768641935593,0.92344363,3297.4,3296.6,0.36750102]
[1768641935789,0.92344363,3297.3,3296.6,0.36750102]
[1768641935997,1.7043372,3297.5,3296.6,0.36750102]
[1768641936200,0.92344363,3297.4,3296.6,0.36750102]
[1768641936399,0.92344363,3297.3,3296.6,0.36750102]
[1768641936599,1.7043372,3297.5,3296.6,0.36750102]
[1768641936802,0.9234433,3297.4,3296.6,0.36750102]
[1768641937101,0.9234433,3297.3,3296.6,0.36750102]
[1768641937301,1.7043372,3297.5,3296.6,0.36750102]
[1768641937602,0.9234425,3297.4,3296.6,0.36750102]
[1768641937794,0.9234425,3297.3,3296.6,0.36750102]
[1768641937993,1.7043372,3297.5,3296.6,0.36750102]
[1768641938198,0.92344256,3297.4,3296.6,0.36750102]
[1768641938399,0.92344256,3297.3,3296.6,0.36750102]
[1768641938700,1.7043372,3297.5,3296.6,0.36750102]
[1768641938899,0.92344237,3297.4,3296.6,0.36750102]
[1768641939097,0.92344237,3297.3,3296.6,0.36750102]
[1768641939301,1.7043372,3297.5,3296.6,0.36750102]
[1768641939506,0.92343891,3297.4,3296.6,0.36750102]
[1768641939712,0.92343891,3297.3,3296.6,0.36750102]
[1768641939911,1.7043372,3297.5,3296.6,0.36750102]
[1768641940102,0.9234222,3297.4,3296.6,0.36750102]
[1768641940298,0.9234222,3297.3,3296.6,0.36750102]
[1768641940502,1.7043372,3297.5,3296.6,0.36750102]
[1768641940705,0.92342282,3297.4,3296.6,0.36750102]
[1768641940906,0.92342282,3297.3,3296.6,0.36750102]
[1768641941107,1.7043372,3297.5,3296.6,0.36750102]
[1768641941309,0.92342228,3297.4,3296.6,0.36750102]
[1768641941607,0.92342228,3297.3,3296.6,0.36750102]
[1768641941805,1.7043372,3297.5,3296.6,0.36750102]
[1768641942007,0.92342381,3297.4,3296.6,0.36750102]
[1768641942308,0.92342381,3297.3,3296.6,0.36750102]
[1768641942614,1.7043372,3297.5,3296.6,0.36750102]
[1768641942816,0.92342581,3297.4,3296.6,0.36750102]
[1768641943118,0.92342581,3297.3,3296.6,0.36750102]
[1768641943312,1.7043372,3297.5,3296.6,0.36750102]
[1768641943615,0.92342659,3297.4,3296.6,0.36750102]
[1768641943816,0.92342659,3297.3,3296.6,0.36750102]
[1768641944017,1.7043372,3297.5,3296.6,0.36750102]
[1768641944314,0.92342659,3297.4,3296.6,0.36750102]
[1768641944514,0.92342659,3297.3,3296.6,0.36750102]
[1768641944815,1.7043372,3297.5,3296.6,0.36750102]
[1768641945116,0.92342747,3297.4,3296.6,0.36750102]
[1768641945304,0.92342747,3297.3,3296.6,0.36750102]
[1768641945506,1.7043372,3297.5,3296.6,0.36750102]
[1768641945706,0.92342852,3297.4,3296.6,0.36750102]
[1768641946006,0.92342852,3297.3,3296.6,0.36750102]
[1768641946202,1.7043372,3297.5,3296.6,0.36750102]
[1768641946407,0.92342842,3297.4,3296.6,0.36750102]
[1768641946607,0.92342842,3297.3,3296.6,0.36750102]
[1768641946817,1.7043372,3297.5,3296.6,0.36750102]
[1768641947008,0.92342938,3297.4,3296.6,0.36750102]
[1768641947206,0.92342938,3297.3,3296.6,0.36750102]
[1768641947407,1.7043372,3297.5,3296.6,0.36750102]
[1768641947608,0.92342964,3297.4,3296.6,0.36750102]
[1768641947804,0.92342964,3297.3,3296.6,0.36750102]
[1768641948010,1.7043372,3297.5,3296.6,0.36750102]
[1768641948219,0.92342882,3297.4,3296.6,0.36750102]
[1768641948418,0.92342882,3297.3,3296.6,0.36750102]
[1768641948621,1.7043372,3297.5,3296.6,0.36750102]
[1768641948809,0.9234267,3297.4,3296.6,0.36750102]
[1768641949009,0.9234267,3297.3,3296.6,0.36750102]
[1768641949209,1.7043372,3297.5,3296.6,0.36750102]
[1768641949410,0.92336294,3297.4,3296.6,0.36750102]
[1768641949611,0.92336294,3297.3,3296.6,0.36750102]
[1768641949814,1.7043372,3297.5,3296.6,0.36750102]
[1768641950015,0.92336473,3297.4,3296.6,1.34967319]
[1768641950216,0.92336473,3297.3,3296.6,1.34967319]
[1768641950416,1.7043372,3297.5,3296.6,1.34967319]
[1768641950707,0.92336273,3297.4,3296.6,1.34967319]
[1768641950912,0.92336273,3297.3,3296.9,0.31151898]
[1768641951120,0.0033372,3297.5,3297.1,0.31151898]
[1768641951619,0.0033372,3297.5,3296.8,0.98217217]
[1768641952623,0.92294874,3297.4,3296.8,0.98217217]
[1768641952818,0.0033372,3297.5,3296.8,0.98217217]
[1768641953022,0.92294874,3297.4,3296.8,0.98217217]
[1768641953324,0.0033372,3297.5,3296.8,0.98217217]
[1768641953623,0.92282455,3297.4,3296.8,0.98217217]
[1768641953822,0.0033372,3297.5,3296.8,0.98217217]
[1768641954122,0.92282455,3297.4,3296.8,0.98217217]
[1768641954325,0.0033372,3297.5,3296.8,0.98217217]
[1768641954524,0.92272901,3297.4,3296.8,0.98217217]
[1768641954726,0.0033372,3297.5,3296.8,0.98217217]
[1768641954919,0.92272901,3297.4,3296.8,1.26376512]
[1768641955127,0.0033372,3297.5,3296.8,1.26376512]
[1768641955314,0.921925,3297.4,3296.8,1.26376512]
[1768641955514,0.0033372,3297.5,3296.8,1.26376512]
[1768641955714,0.92184662,3297.4,3296.8,1.26376512]
[1768641955921,0.0033372,3297.5,3296.8,1.26376512]
[1768641956121,0.92184498,3297.4,3296.8,1.26376512]
[1768641956408,0.0033372,3297.5,3296.8,1.26376512]
[1768641956608,0.92178116,3297.4,3296.8,1.26376512]
[1768641956817,0.0033372,3297.5,3296.8,1.26376512]
[1768641957013,0.92157956,3297.4,3296.8,1.26376512]
[1768641957224,0.0033372,3297.5,3296.8,1.26376512]
[1768641957424,0.9215786,3297.4,3296.8,1.26376512]
[1768641957726,0.0033372,3297.5,3296.8,1.26376512]
[1768641957928,0.92148648,3297.4,3296.8,1.26376512]
[1768641958222,0.0033372,3297.5,3296.8,1.26376512]
[1768641958420,0.92148644,3297.4,3296.8,1.26376512]
[1768641958619,0.0033372,3297.5,3296.8,1.26376512]
[1768641958814,0.92144,3297.4,3296.8,1.26376512]
[1768641959016,0.0033372,3297.5,3296.8,1.26376512]
[1768641959217,0.92144045,3297.4,3296.8,1.26376512]
[1768641959419,0.0033372,3297.5,3296.8,1.26376512]
[1768641959714,0.92140432,3297.4,3296.8,1.26376512]
[1768641959917,0.0033372,3297.5,3296.8,1.26376512]
[1768641960214,0.92140732,3297.4,3296.8,1.26376512]
[1768641960415,0.0033372,3297.5,3296.8,1.26376512]
[1768641960614,0.9213973,3297.4,3296.8,1.26376512]
[1768641960825,0.0033372,3297.5,3296.8,1.26376512]
[1768641961127,0.92139792,3297.4,3296.8,1.26376512]
[1768641961423,0.0033372,3297.5,3296.8,1.26376512]
[1768641961624,0.92136787,3297.4,3296.8,1.26376512]
[1768641961825,0.0033372,3297.5,3296.8,1.26376512]
[1768641962129,0.92136779,3297.4,3296.8,1.26376512]
[1768641962426,0.0033372,3297.5,3296.8,1.26376512]
[1768641972431,0.0033372,3297.5,3296.9,0.28159295]
[1768642002547,0.92231974,3297.4,3296.9,0.28159295]
[1768642002846,0.0033372,3297.5,3296.9,0.28159295]
[1768642003047,0.92231975,3297.4,3296.9,0.28159295]
[1768642003245,0.0033372,3297.5,3296.9,0.28159295]
[1768642003445,0.92231805,3297.4,3296.9,0.28159295]
[1768642003649,0.0033372,3297.5,3296.9,0.28159295]
[1768642003848,0.92231684,3297.4,3296.9,0.28159295]
[1768642004049,0.0033372,3297.5,3296.9,0.28159295]
[1768642004245,0.92241324,3297.4,3296.9,0.28159295]
[1768642004548,0.0033372,3297.5,3296.9,0.28159295]
[1768642004743,0.92241176,3297.4,3296.9,0.28159295]
[1768642005053,0.0033372,3297.5,3296.9,0.28159295]
[1768642005244,0.92241366,3297.4,3296.9,0.28159295]